[Event "Titled Tuesday Blitz December 14 2021"]
[White "Petesch, Gabriel"]
[Black "Horvath, Dominik"]
[WhiteFideId "2032465"]
[BlackFideId "1642561"]
[WhiteElo "2374"]
[BlackElo "2336"]
[Result "0-1"]
[Round "03"]
[TimeControl "180+1"]
[Date "2021.12.14"]
[WhiteClock "0:00:05"]
[BlackClock "0:00:20"]

1. Nf3 {[%clk 0:02:59]}  f5 {[%clk 0:02:56]} 2. d3 {[%clk 0:02:53]}  Nc6 {[%clk 0:02:54]} 3. Nc3 {[%clk 0:02:51]}  e5 {[%clk 0:02:45]} 4. e4 {[%clk 0:02:47]}  Nf6 {[%clk 0:02:37]} 5. g3 {[%clk 0:02:39]}  fxe4 {[%clk 0:02:34]} 6. dxe4 {[%clk 0:02:38]}  Bb4 {[%clk 0:02:35]} 7. Qd3 {[%clk 0:01:56]}  d6 {[%clk 0:02:17]} 8. Bg2 {[%clk 0:01:53]}  Bxc3+ {[%clk 0:01:43]} 9. bxc3 {[%clk 0:01:47]}  O-O {[%clk 0:01:42]} 10. O-O {[%clk 0:01:46]}  Kh8 {[%clk 0:01:43]} 11. Nd2 {[%clk 0:01:23]}  Be6 {[%clk 0:01:24]} 12. Nc4 {[%clk 0:01:18]}  Nd7 {[%clk 0:01:23]} 13. Ne3 {[%clk 0:01:12]}  Nc5 {[%clk 0:01:21]} 14. Qe2 {[%clk 0:01:12]}  Ne7 {[%clk 0:01:18]} 15. a4 {[%clk 0:01:02]}  a5 {[%clk 0:01:18]} 16. Rd1 {[%clk 0:00:56]}  Qd7 {[%clk 0:01:17]} 17. Qe1 {[%clk 0:00:49]}  Bh3 {[%clk 0:01:12]} 18. Bh1 {[%clk 0:00:43]}  Ng6 {[%clk 0:01:07]} 19. Ba3 {[%clk 0:00:37]}  b6 {[%clk 0:01:07]} 20. Bxc5 {[%clk 0:00:30]}  bxc5 {[%clk 0:01:08]} 21. Nf5 {[%clk 0:00:21]}  Rab8 {[%clk 0:01:03]} 22. c4 {[%clk 0:00:18]}  Bxf5 {[%clk 0:01:01]} 23. exf5 {[%clk 0:00:18]}  Qxf5 {[%clk 0:01:01]} 24. Be4 {[%clk 0:00:18]}  Qf6 {[%clk 0:01:00]} 25. Rab1 {[%clk 0:00:17]}  Rb4 {[%clk 0:00:56]} 26. Rxb4 {[%clk 0:00:17]}  cxb4 {[%clk 0:00:53]} 27. Rd5 {[%clk 0:00:11]}  c5 {[%clk 0:00:24]} 28. Qd2 {[%clk 0:00:11]}  Rd8 {[%clk 0:00:24]} 29. Bxg6 {[%clk 0:00:07]}  hxg6 {[%clk 0:00:22]} 30. Qe3 {[%clk 0:00:06]}  Qf5 {[%clk 0:00:21]} 31. Qd3 {[%clk 0:00:04]}  Qxd3 {[%clk 0:00:19]} 32. Rxd3 {[%clk 0:00:04]}  Kg8 {[%clk 0:00:19]} 33. Kg2 {[%clk 0:00:05]}  Kf7 {[%clk 0:00:20]} 34. Kf3 {[%clk 0:00:06]}  Ke6 {[%clk 0:00:20]} 35. Ke4 {[%clk 0:00:06]}  g5 {[%clk 0:00:20]} 36. Rf3 {[%clk 0:00:05]}  Rh8 {[%clk 0:00:20]} 37. Rf5 {[%clk 0:00:04]}  Rxh2 {[%clk 0:00:19]} 38. Rxg5 {[%clk 0:00:05]}  Rxf2 {[%clk 0:00:19]} 39. Rg6+ {[%clk 0:00:05]}  Ke7 {[%clk 0:00:17]} 40. Rxg7+ {[%clk 0:00:05]}  Kf6 {[%clk 0:00:18]} 41. Rd7 {[%clk 0:00:03]}  Ke6 {[%clk 0:00:18]} 42. Ra7 {[%clk 0:00:03]}  Rxc2 {[%clk 0:00:18]} 43. Kd3 {[%clk 0:00:02]}  Rc3+ {[%clk 0:00:18]} 44. Kd2 {[%clk 0:00:03]}  Rxc4 {[%clk 0:00:19]} 45. Rxa5 {[%clk 0:00:03]}  Rg4 {[%clk 0:00:19]} 46. Rb5 {[%clk 0:00:03]}  Rxg3 {[%clk 0:00:19]} 47. a5 {[%clk 0:00:04]}  Ra3 {[%clk 0:00:20]} 48. a6 {[%clk 0:00:05]}  Rxa6 {[%clk 0:00:20]} 0-1


[Site "https://www.chess.com"]

[Event "Titled Tuesday Blitz December 14 2021"]
[White "Pichot, Alan"]
[Black "Zakhartsov, Vladimir"]
[WhiteFideId "110973"]
[BlackFideId "4145097"]
[WhiteElo "2629"]
[BlackElo "2411"]
[Result "1-0"]
[Round "03"]
[TimeControl "180+1"]
[Date "2021.12.14"]
[WhiteClock "0:00:03"]
[BlackClock "0:00:03"]

1. e4 {[%clk 0:03:00]}  e5 {[%clk 0:02:58]} 2. Nf3 {[%clk 0:03:01]}  Nf6 {[%clk 0:02:59]} 3. Nxe5 {[%clk 0:03:01]}  d6 {[%clk 0:02:57]} 4. Nf3 {[%clk 0:03:01]}  Nxe4 {[%clk 0:02:57]} 5. d4 {[%clk 0:03:02]}  Be7 {[%clk 0:02:57]} 6. Bd3 {[%clk 0:03:03]}  Nf6 {[%clk 0:02:57]} 7. O-O {[%clk 0:03:03]}  Bg4 {[%clk 0:02:57]} 8. Re1 {[%clk 0:03:04]}  O-O {[%clk 0:02:57]} 9. h3 {[%clk 0:03:03]}  Bh5 {[%clk 0:02:57]} 10. Nbd2 {[%clk 0:03:04]}  Re8 {[%clk 0:02:57]} 11. Nf1 {[%clk 0:03:02]}  Nbd7 {[%clk 0:02:54]} 12. Ng3 {[%clk 0:03:02]}  Bg6 {[%clk 0:02:55]} 13. Nf5 {[%clk 0:02:58]}  Bf8 {[%clk 0:02:54]} 14. Bg5 {[%clk 0:02:55]}  Rxe1+ {[%clk 0:02:51]} 15. Qxe1 {[%clk 0:02:55]}  c6 {[%clk 0:02:52]} 16. Qd2 {[%clk 0:02:33]}  Qb6 {[%clk 0:02:51]} 17. c3 {[%clk 0:02:29]}  Re8 {[%clk 0:02:47]} 18. Bf4 {[%clk 0:02:28]}  c5 {[%clk 0:02:23]} 19. a4 {[%clk 0:02:13]}  Ne4 {[%clk 0:02:17]} 20. Bxe4 {[%clk 0:02:10]}  Rxe4 {[%clk 0:02:18]} 21. Ng3 {[%clk 0:02:08]}  Re8 {[%clk 0:02:16]} 22. a5 {[%clk 0:02:06]}  Qc6 {[%clk 0:02:15]} 23. Nh4 {[%clk 0:01:32]}  Nf6 {[%clk 0:02:06]} 24. Nxg6 {[%clk 0:01:31]}  hxg6 {[%clk 0:02:07]} 25. Qd3 {[%clk 0:01:07]}  c4 {[%clk 0:01:59]} 26. Qc2 {[%clk 0:01:05]}  Nd5 {[%clk 0:01:55]} 27. Bd2 {[%clk 0:01:04]}  Qb5 {[%clk 0:01:38]} 28. Nf1 {[%clk 0:00:55]}  Nf6 {[%clk 0:01:28]} 29. Ne3 {[%clk 0:00:55]}  d5 {[%clk 0:01:27]} 30. Ng4 {[%clk 0:00:39]}  Nxg4 {[%clk 0:01:19]} 31. hxg4 {[%clk 0:00:38]}  Bd6 {[%clk 0:01:20]} 32. Be3 {[%clk 0:00:39]}  a6 {[%clk 0:01:16]} 33. Qd2 {[%clk 0:00:34]}  Bc7 {[%clk 0:01:07]} 34. g3 {[%clk 0:00:23]}  Bxa5 {[%clk 0:00:44]} 35. Kg2 {[%clk 0:00:24]}  f6 {[%clk 0:00:43]} 36. Qc2 {[%clk 0:00:23]}  Kf7 {[%clk 0:00:42]} 37. Bf4 {[%clk 0:00:23]}  Bd8 {[%clk 0:00:41]} 38. g5 {[%clk 0:00:21]}  Qd7 {[%clk 0:00:40]} 39. gxf6 {[%clk 0:00:19]}  Bxf6 {[%clk 0:00:40]} 40. Qd1 {[%clk 0:00:16]}  Qf5 {[%clk 0:00:38]} 41. Qf3 {[%clk 0:00:15]}  g5 {[%clk 0:00:33]} 42. Be3 {[%clk 0:00:15]}  Qxf3+ {[%clk 0:00:31]} 43. Kxf3 {[%clk 0:00:16]}  Re4 {[%clk 0:00:27]} 44. g4 {[%clk 0:00:12]}  Re6 {[%clk 0:00:24]} 45. Ra5 {[%clk 0:00:11]}  Rd6 {[%clk 0:00:23]} 46. Rc5 {[%clk 0:00:12]}  Rd7 {[%clk 0:00:24]} 47. Rc8 {[%clk 0:00:12]}  Ke6 {[%clk 0:00:21]} 48. Re8+ {[%clk 0:00:11]}  Re7 {[%clk 0:00:19]} 49. Rb8 {[%clk 0:00:11]}  Kd6 {[%clk 0:00:18]} 50. Ke2 {[%clk 0:00:11]}  Kc6 {[%clk 0:00:18]} 51. Kd2 {[%clk 0:00:11]}  b5 {[%clk 0:00:18]} 52. f3 {[%clk 0:00:09]}  a5 {[%clk 0:00:18]} 53. Bf2 {[%clk 0:00:10]}  Rb7 {[%clk 0:00:17]} 54. Ra8 {[%clk 0:00:09]}  Kb6 {[%clk 0:00:16]} 55. Bg3 {[%clk 0:00:10]}  b4 {[%clk 0:00:16]} 56. Bd6 {[%clk 0:00:10]}  Kb5 {[%clk 0:00:15]} 57. Bc5 {[%clk 0:00:06]}  Be7 {[%clk 0:00:14]} 58. Bxe7 {[%clk 0:00:04]}  Rxe7 {[%clk 0:00:15]} 59. Rd8 {[%clk 0:00:01]}  Ka4 {[%clk 0:00:13]} 60. Rxd5 {[%clk 0:00:02]}  Kb3 {[%clk 0:00:14]} 61. Rxa5 {[%clk 0:00:02]}  Kxb2 {[%clk 0:00:14]} 62. Rb5 {[%clk 0:00:02]}  b3 {[%clk 0:00:15]} 63. Rb4 {[%clk 0:00:02]}  Rc7 {[%clk 0:00:07]} 64. Ra4 {[%clk 0:00:02]}  Kb1 {[%clk 0:00:07]} 65. d5 {[%clk 0:00:03]}  Rd7 {[%clk 0:00:06]} 66. Ra5 {[%clk 0:00:03]}  g6 {[%clk 0:00:07]} 67. Rc5 {[%clk 0:00:02]}  b2 {[%clk 0:00:06]} 68. Rb5 {[%clk 0:00:03]}  Ka2 {[%clk 0:00:04]} 69. Kc2 {[%clk 0:00:02]}  b1=Q+ {[%clk 0:00:03]} 70. Rxb1 {[%clk 0:00:02]}  Rxd5 {[%clk 0:00:04]} 71. Rb4 {[%clk 0:00:03]}  Ka3 {[%clk 0:00:04]} 72. Rxc4 {[%clk 0:00:03]}  Re5 {[%clk 0:00:04]} 73. Rd4 {[%clk 0:00:03]}  Re3 {[%clk 0:00:04]} 74. Rd3 {[%clk 0:00:04]}  Re2+ {[%clk 0:00:05]} 75. Kd1 {[%clk 0:00:04]}  Rf2 {[%clk 0:00:05]} 76. Ke1 {[%clk 0:00:04]}  Rh2 {[%clk 0:00:05]} 77. Rd2 {[%clk 0:00:04]}  Rh3 {[%clk 0:00:03]} 78. Ke2 {[%clk 0:00:05]}  Kb3 {[%clk 0:00:03]} 79. Rd6 {[%clk 0:00:05]}  Rh6 {[%clk 0:00:01]} 80. Rc6 {[%clk 0:00:04]}  Ka4 {[%clk 0:00:01]} 81. Ke3 {[%clk 0:00:04]}  Kb5 {[%clk 0:00:02]} 82. Re6 {[%clk 0:00:04]}  Kc4 {[%clk 0:00:02]} 83. Re5 {[%clk 0:00:04]}  Kxc3 {[%clk 0:00:02]} 84. Rc5+ {[%clk 0:00:05]}  Kb4 {[%clk 0:00:02]} 85. Rxg5 {[%clk 0:00:06]}  Kc4 {[%clk 0:00:03]} 86. Re5 {[%clk 0:00:04]}  Rh8 {[%clk 0:00:03]} 87. Re6 {[%clk 0:00:03]}  Rg8 {[%clk 0:00:02]} 88. Kf4 {[%clk 0:00:03]}  Kd5 {[%clk 0:00:03]} 89. Ra6 {[%clk 0:00:02]}  Rf8+ {[%clk 0:00:02]} 90. Kg5 {[%clk 0:00:02]}  Rxf3 {[%clk 0:00:03]} 91. Kxg6 {[%clk 0:00:02]}  Ke5 {[%clk 0:00:02]} 92. g5 {[%clk 0:00:03]}  Rf1 {[%clk 0:00:02]} 93. Kh6 {[%clk 0:00:03]}  Rh1+ {[%clk 0:00:01]} 94. Kg7 {[%clk 0:00:04]}  Kf5 {[%clk 0:00:02]} 95. g6 {[%clk 0:00:04]}  Rb1 {[%clk 0:00:03]} 96. Ra5+ {[%clk 0:00:04]}  Ke6 {[%clk 0:00:02]} 97. Kh7 {[%clk 0:00:05]}  Rh1+ {[%clk 0:00:03]} 98. Kg8 {[%clk 0:00:05]}  Rb1 {[%clk 0:00:03]} 99. g7 {[%clk 0:00:05]}  Rh1 {[%clk 0:00:03]} 100. Ra6+ {[%clk 0:00:05]}  Ke7 {[%clk 0:00:03]} 101. Ra7+ {[%clk 0:00:05]}  Ke8 {[%clk 0:00:04]} 102. Ra2 {[%clk 0:00:04]}  Re1 {[%clk 0:00:03]} 103. Rh2 {[%clk 0:00:03]} 1-0


[Site "https://www.chess.com"]

[Event "Titled Tuesday Blitz December 14 2021"]
[White "Radovic, Janko"]
[Black "Dobrov, Vladimir"]
[WhiteFideId "911518"]
[BlackFideId "4136594"]
[WhiteElo "2293"]
[BlackElo "2614"]
[Result "0-1"]
[Round "03"]
[TimeControl "180+1"]
[Date "2021.12.14"]
[WhiteClock "0:00:01"]
[BlackClock "0:00:18"]

1. Nf3 {[%clk 0:03:00]}  d5 {[%clk 0:02:59]} 2. c4 {[%clk 0:02:59]}  d4 {[%clk 0:03:00]} 3. g3 {[%clk 0:02:58]}  Nc6 {[%clk 0:03:00]} 4. Bg2 {[%clk 0:02:57]}  e5 {[%clk 0:03:00]} 5. d3 {[%clk 0:02:57]}  Nf6 {[%clk 0:03:00]} 6. O-O {[%clk 0:02:58]}  a5 {[%clk 0:03:01]} 7. Na3 {[%clk 0:02:58]}  Bc5 {[%clk 0:02:58]} 8. Nc2 {[%clk 0:02:57]}  O-O {[%clk 0:02:57]} 9. e4 {[%clk 0:02:50]}  dxe3 {[%clk 0:02:54]} 10. Bxe3 {[%clk 0:02:49]}  Bxe3 {[%clk 0:02:44]} 11. Nxe3 {[%clk 0:02:49]}  h6 {[%clk 0:02:41]} 12. Re1 {[%clk 0:02:49]}  Re8 {[%clk 0:02:40]} 13. a3 {[%clk 0:02:43]}  Be6 {[%clk 0:02:26]} 14. Qb3 {[%clk 0:02:39]}  Qd7 {[%clk 0:02:15]} 15. Rad1 {[%clk 0:02:27]}  a4 {[%clk 0:02:11]} 16. Qc2 {[%clk 0:02:08]}  Ra5 {[%clk 0:01:51]} 17. Qc3 {[%clk 0:02:02]}  b6 {[%clk 0:01:49]} 18. Nc2 {[%clk 0:02:00]}  Bg4 {[%clk 0:01:46]} 19. Re3 {[%clk 0:01:53]}  e4 {[%clk 0:01:43]} 20. Rde1 {[%clk 0:00:17]}  Bxf3 {[%clk 0:01:37]} 21. Bxf3 {[%clk 0:00:15]}  exf3 {[%clk 0:01:37]} 22. Rxe8+ {[%clk 0:00:12]}  Nxe8 {[%clk 0:01:36]} 23. d4 {[%clk 0:00:13]}  Nf6 {[%clk 0:01:25]} 24. d5 {[%clk 0:00:13]}  Ne7 {[%clk 0:01:08]} 25. Qxf3 {[%clk 0:00:14]}  Rc5 {[%clk 0:00:56]} 26. Ne3 {[%clk 0:00:13]}  Ng6 {[%clk 0:00:54]} 27. Qe2 {[%clk 0:00:10]}  b5 {[%clk 0:00:53]} 28. cxb5 {[%clk 0:00:09]}  Qxb5 {[%clk 0:00:53]} 29. Qd2 {[%clk 0:00:09]}  Nxd5 {[%clk 0:00:49]} 30. Nf5 {[%clk 0:00:09]}  Nf6 {[%clk 0:00:45]} 31. Qd8+ {[%clk 0:00:07]}  Kh7 {[%clk 0:00:45]} 32. Nd4 {[%clk 0:00:05]}  Qd7 {[%clk 0:00:39]} 33. Qxd7 {[%clk 0:00:04]}  Nxd7 {[%clk 0:00:40]} 34. Re8 {[%clk 0:00:03]}  Rc1+ {[%clk 0:00:37]} 35. Kg2 {[%clk 0:00:04]}  Rb1 {[%clk 0:00:36]} 36. Rd8 {[%clk 0:00:03]}  Nb6 {[%clk 0:00:30]} 37. h4 {[%clk 0:00:02]}  Rxb2 {[%clk 0:00:28]} 38. h5 {[%clk 0:00:02]}  Ne5 {[%clk 0:00:28]} 39. Nf5 {[%clk 0:00:03]}  Ng4 {[%clk 0:00:23]} 40. Kf3 {[%clk 0:00:02]}  Nf6 {[%clk 0:00:23]} 41. Ne7 {[%clk 0:00:02]}  Rb3+ {[%clk 0:00:22]} 42. Kf4 {[%clk 0:00:02]}  Nxh5+ {[%clk 0:00:22]} 43. Ke5 {[%clk 0:00:02]}  Rf3 {[%clk 0:00:19]} 44. Nc6 {[%clk 0:00:01]}  Rxf2 {[%clk 0:00:19]} 45. Kd4 {[%clk 0:00:01]}  Nxg3 {[%clk 0:00:18]} 46. Ke3 {[%clk 0:00:01]}  Rf6 {[%clk 0:00:18]} 0-1


[Site "https://www.chess.com"]

[Event "Titled Tuesday Blitz December 14 2021"]
[White "Rasulov, Vugar"]
[Black "Dronavalli, Harika"]
[WhiteFideId "13402390"]
[BlackFideId "5015197"]
[WhiteElo "2560"]
[BlackElo "2382"]
[Result "1/2-1/2"]
[Round "03"]
[TimeControl "180+1"]
[Date "2021.12.14"]
[WhiteClock "0:00:36"]
[BlackClock "0:00:27"]

1. d4 {[%clk 0:03:00]}  d5 {[%clk 0:02:59]} 2. c4 {[%clk 0:03:01]}  e6 {[%clk 0:03:00]} 3. Nc3 {[%clk 0:03:00]}  Bb4 {[%clk 0:02:57]} 4. Nf3 {[%clk 0:03:00]}  Nf6 {[%clk 0:02:57]} 5. e3 {[%clk 0:02:59]}  O-O {[%clk 0:02:56]} 6. Bd2 {[%clk 0:02:59]}  b6 {[%clk 0:02:55]} 7. Be2 {[%clk 0:02:59]}  Bb7 {[%clk 0:02:54]} 8. O-O {[%clk 0:03:00]}  Nbd7 {[%clk 0:02:54]} 9. Nxd5 {[%clk 0:02:57]}  Nxd5 {[%clk 0:02:53]} 10. cxd5 {[%clk 0:02:56]}  Bxd2 {[%clk 0:02:53]} 11. dxe6 {[%clk 0:02:57]}  Bb4 {[%clk 0:02:36]} 12. exd7 {[%clk 0:02:56]}  Qxd7 {[%clk 0:02:37]} 13. Ne5 {[%clk 0:02:55]}  Qe7 {[%clk 0:02:37]} 14. Bf3 {[%clk 0:02:54]}  Bxf3 {[%clk 0:02:35]} 15. Qxf3 {[%clk 0:02:55]}  Bd6 {[%clk 0:02:35]} 16. Nc4 {[%clk 0:02:54]}  Rad8 {[%clk 0:02:33]} 17. Rac1 {[%clk 0:02:53]}  c5 {[%clk 0:02:22]} 18. Nxd6 {[%clk 0:02:51]}  Rxd6 {[%clk 0:02:12]} 19. dxc5 {[%clk 0:02:52]}  bxc5 {[%clk 0:02:13]} 20. Rxc5 {[%clk 0:02:47]}  Rd2 {[%clk 0:02:03]} 21. Rb5 {[%clk 0:02:47]}  a6 {[%clk 0:02:01]} 22. Rb7 {[%clk 0:02:45]}  Qe5 {[%clk 0:02:01]} 23. Qg3 {[%clk 0:02:39]}  Qf6 {[%clk 0:01:50]} 24. Rb8 {[%clk 0:02:37]}  Rxb2 {[%clk 0:01:41]} 25. Rxf8+ {[%clk 0:02:36]}  Kxf8 {[%clk 0:01:41]} 26. a4 {[%clk 0:02:30]}  g6 {[%clk 0:01:38]} 27. h3 {[%clk 0:02:22]}  h5 {[%clk 0:01:38]} 28. Qc7 {[%clk 0:02:18]}  Kg7 {[%clk 0:01:38]} 29. Qc4 {[%clk 0:02:16]}  Rd2 {[%clk 0:01:28]} 30. h4 {[%clk 0:02:11]}  Rb2 {[%clk 0:01:27]} 31. g3 {[%clk 0:02:11]}  Rd2 {[%clk 0:01:27]} 32. Qc5 {[%clk 0:01:58]}  Rb2 {[%clk 0:01:24]} 33. e4 {[%clk 0:01:56]}  Re2 {[%clk 0:01:20]} 34. Qc4 {[%clk 0:01:55]}  Rd2 {[%clk 0:01:12]} 35. e5 {[%clk 0:01:50]}  Qxe5 {[%clk 0:01:03]} 36. Qxa6 {[%clk 0:01:50]}  Qd4 {[%clk 0:01:01]} 37. a5 {[%clk 0:01:45]}  Ra2 {[%clk 0:01:01]} 38. Qb5 {[%clk 0:01:42]}  Qa7 {[%clk 0:00:55]} 39. Qe5+ {[%clk 0:01:40]}  Kh7 {[%clk 0:00:55]} 40. Qe4 {[%clk 0:01:20]}  Rxa5 {[%clk 0:00:54]} 41. Rd1 {[%clk 0:01:16]}  Ra1 {[%clk 0:00:53]} 42. Qd3 {[%clk 0:01:14]}  Rxd1+ {[%clk 0:00:53]} 43. Qxd1 {[%clk 0:01:15]}  Qe7 {[%clk 0:00:53]} 44. Qf3 {[%clk 0:01:15]}  Kg7 {[%clk 0:00:53]} 45. Kg2 {[%clk 0:01:16]}  Qe6 {[%clk 0:00:53]} 46. Qf4 {[%clk 0:01:15]}  Qd5+ {[%clk 0:00:52]} 47. Kh2 {[%clk 0:01:16]}  Kg8 {[%clk 0:00:52]} 48. Qe3 {[%clk 0:01:15]}  Kg7 {[%clk 0:00:52]} 49. Qe2 {[%clk 0:01:12]}  Kg8 {[%clk 0:00:52]} 50. f3 {[%clk 0:01:13]}  Kg7 {[%clk 0:00:52]} 51. Kg2 {[%clk 0:01:13]}  Kg8 {[%clk 0:00:51]} 52. Qb2 {[%clk 0:01:13]}  Qf5 {[%clk 0:00:51]} 53. Qd2 {[%clk 0:01:11]}  Qe6 {[%clk 0:00:51]} 54. Qd8+ {[%clk 0:01:05]}  Kg7 {[%clk 0:00:51]} 55. Qd4+ {[%clk 0:01:05]}  Kg8 {[%clk 0:00:51]} 56. Kf2 {[%clk 0:01:04]}  Qh3 {[%clk 0:00:51]} 57. Qd8+ {[%clk 0:00:59]}  Kg7 {[%clk 0:00:50]} 58. Qd4+ {[%clk 0:01:00]}  Kg8 {[%clk 0:00:51]} 59. Qe5 {[%clk 0:00:53]}  Qh2+ {[%clk 0:00:50]} 60. Ke3 {[%clk 0:00:54]}  Qg1+ {[%clk 0:00:45]} 61. Kf4 {[%clk 0:00:54]}  Qc1+ {[%clk 0:00:46]} 62. Qe3 {[%clk 0:00:55]}  Qc8 {[%clk 0:00:33]} 63. g4 {[%clk 0:00:42]}  hxg4 {[%clk 0:00:30]} 64. fxg4 {[%clk 0:00:43]}  Qc7+ {[%clk 0:00:30]} 65. Kg5 {[%clk 0:00:42]}  Qd8+ {[%clk 0:00:31]} 66. Kf4 {[%clk 0:00:40]}  Qxh4 {[%clk 0:00:30]} 67. Qe8+ {[%clk 0:00:28]}  Kg7 {[%clk 0:00:30]} 68. Qe5+ {[%clk 0:00:28]}  Qf6+ {[%clk 0:00:29]} 69. Qxf6+ {[%clk 0:00:28]}  Kxf6 {[%clk 0:00:30]} 70. g5+ {[%clk 0:00:29]}  Ke6 {[%clk 0:00:29]} 71. Ke4 {[%clk 0:00:30]}  Kd6 {[%clk 0:00:29]} 72. Kd4 {[%clk 0:00:30]}  Kd7 {[%clk 0:00:29]} 73. Kd5 {[%clk 0:00:30]}  Ke7 {[%clk 0:00:25]} 74. Ke5 {[%clk 0:00:30]}  f5 {[%clk 0:00:18]} 75. gxf6+ {[%clk 0:00:29]}  Kf7 {[%clk 0:00:19]} 76. Kf4 {[%clk 0:00:30]}  Kxf6 {[%clk 0:00:20]} 77. Kg4 {[%clk 0:00:31]}  g5 {[%clk 0:00:20]} 78. Kg3 {[%clk 0:00:31]}  Kf5 {[%clk 0:00:20]} 79. Kf3 {[%clk 0:00:32]}  g4+ {[%clk 0:00:21]} 80. Kg3 {[%clk 0:00:32]}  Kg5 {[%clk 0:00:22]} 81. Kg2 {[%clk 0:00:33]}  Kf4 {[%clk 0:00:22]} 82. Kf2 {[%clk 0:00:33]}  g3+ {[%clk 0:00:23]} 83. Kg2 {[%clk 0:00:34]}  Kg4 {[%clk 0:00:23]} 84. Kg1 {[%clk 0:00:34]}  Kf3 {[%clk 0:00:24]} 85. Kf1 {[%clk 0:00:35]}  Kg4 {[%clk 0:00:24]} 86. Kg2 {[%clk 0:00:35]}  Kh4 {[%clk 0:00:25]} 87. Kg1 {[%clk 0:00:35]}  Kh3 {[%clk 0:00:25]} 88. Kh1 {[%clk 0:00:36]}  g2+ {[%clk 0:00:26]} 89. Kg1 {[%clk 0:00:36]}  Kg3 {[%clk 0:00:27]} 1/2-1/2


[Site "https://www.chess.com"]

[Event "Titled Tuesday Blitz December 14 2021"]
[White "Samadov, Read"]
[Black "Boskovic, Drasko"]
[WhiteFideId "13417444"]
[BlackFideId "927368"]
[WhiteElo "2084"]
[BlackElo "2388"]
[Result "0-1"]
[Round "03"]
[TimeControl "180+1"]
[Date "2021.12.15"]
[WhiteClock "0:00:02"]
[BlackClock "0:01:31"]

1. d4 {[%clk 0:03:00]}  Nf6 {[%clk 0:02:56]} 2. c4 {[%clk 0:03:00]}  g6 {[%clk 0:02:56]} 3. Nc3 {[%clk 0:03:00]}  d5 {[%clk 0:02:56]} 4. cxd5 {[%clk 0:03:00]}  Nxd5 {[%clk 0:02:57]} 5. e4 {[%clk 0:03:00]}  Nxc3 {[%clk 0:02:58]} 6. bxc3 {[%clk 0:03:01]}  Bg7 {[%clk 0:02:58]} 7. Bc4 {[%clk 0:03:01]}  c5 {[%clk 0:02:59]} 8. Ne2 {[%clk 0:03:02]}  O-O {[%clk 0:02:59]} 9. O-O {[%clk 0:03:01]}  Nc6 {[%clk 0:03:00]} 10. Be3 {[%clk 0:03:01]}  Qc7 {[%clk 0:03:00]} 11. Rc1 {[%clk 0:03:00]}  b6 {[%clk 0:03:00]} 12. Qd2 {[%clk 0:03:00]}  Bb7 {[%clk 0:03:00]} 13. Rfd1 {[%clk 0:02:59]}  Rad8 {[%clk 0:03:00]} 14. Bh6 {[%clk 0:02:55]}  e6 {[%clk 0:02:52]} 15. h4 {[%clk 0:02:54]}  cxd4 {[%clk 0:02:45]} 16. Bxg7 {[%clk 0:02:53]}  Kxg7 {[%clk 0:02:45]} 17. cxd4 {[%clk 0:02:54]}  Qe7 {[%clk 0:02:41]} 18. h5 {[%clk 0:02:34]}  Qh4 {[%clk 0:02:33]} 19. d5 {[%clk 0:02:15]}  Qxe4 {[%clk 0:02:20]} 20. Qc3+ {[%clk 0:01:58]}  Ne5 {[%clk 0:02:19]} 21. f3 {[%clk 0:00:56]}  Qf5 {[%clk 0:02:05]} 22. f4 {[%clk 0:00:39]}  exd5 {[%clk 0:02:04]} 23. Bb3 {[%clk 0:00:31]}  d4 {[%clk 0:01:59]} 24. Rxd4 {[%clk 0:00:27]}  Qg4 {[%clk 0:01:48]} 25. Rd5 {[%clk 0:00:01]}  Bxd5 {[%clk 0:01:30]} 26. Qxe5+ {[%clk 0:00:01]}  f6 {[%clk 0:01:30]} 27. Rc7+ {[%clk 0:00:02]}  Kh8 {[%clk 0:01:31]} 0-1


[Site "https://www.chess.com"]

[Event "Titled Tuesday Blitz December 14 2021"]
[White "Secheres, Adrian-Simion"]
[Black "Urazayev, Arystanbek"]
[WhiteFideId "1217445"]
[BlackFideId "13709810"]
[WhiteElo "2276"]
[BlackElo "2321"]
[Result "1-0"]
[Round "03"]
[TimeControl "180+1"]
[Date "2021.12.14"]
[WhiteClock "0:00:10"]
[BlackClock "0:00:01"]

1. d4 {[%clk 0:03:00]}  Nf6 {[%clk 0:03:00]} 2. c4 {[%clk 0:03:01]}  g6 {[%clk 0:03:01]} 3. Nc3 {[%clk 0:03:01]}  Bg7 {[%clk 0:03:02]} 4. e4 {[%clk 0:03:01]}  d6 {[%clk 0:03:02]} 5. Be2 {[%clk 0:03:01]}  O-O {[%clk 0:03:02]} 6. Bg5 {[%clk 0:03:02]}  c5 {[%clk 0:03:02]} 7. d5 {[%clk 0:03:02]}  e6 {[%clk 0:02:59]} 8. Qd2 {[%clk 0:03:01]}  exd5 {[%clk 0:02:59]} 9. exd5 {[%clk 0:03:01]}  Qb6 {[%clk 0:02:57]} 10. Rd1 {[%clk 0:03:01]}  Re8 {[%clk 0:02:56]} 11. f3 {[%clk 0:03:01]}  Nbd7 {[%clk 0:02:52]} 12. Kf1 {[%clk 0:03:01]}  Ne5 {[%clk 0:02:50]} 13. g4 {[%clk 0:02:58]}  a6 {[%clk 0:02:41]} 14. Nh3 {[%clk 0:02:54]}  h5 {[%clk 0:02:37]} 15. Bxf6 {[%clk 0:02:39]}  Bxf6 {[%clk 0:02:38]} 16. Nf2 {[%clk 0:02:39]}  hxg4 {[%clk 0:02:34]} 17. fxg4 {[%clk 0:02:37]}  Qb4 {[%clk 0:02:32]} 18. Nce4 {[%clk 0:02:32]}  Be7 {[%clk 0:02:25]} 19. Qxb4 {[%clk 0:02:11]}  cxb4 {[%clk 0:02:24]} 20. c5 {[%clk 0:02:11]}  dxc5 {[%clk 0:02:15]} 21. d6 {[%clk 0:02:11]}  Bh4 {[%clk 0:02:14]} 22. Nxc5 {[%clk 0:02:10]}  Nd7 {[%clk 0:02:14]} 23. Nfe4 {[%clk 0:02:07]}  b6 {[%clk 0:02:09]} 24. Nxd7 {[%clk 0:01:58]}  Rxe4 {[%clk 0:01:51]} 25. Nxb6 {[%clk 0:01:50]}  Rf4+ {[%clk 0:01:48]} 26. Kg2 {[%clk 0:01:50]}  Bb7+ {[%clk 0:01:30]} 27. Kh3 {[%clk 0:01:50]}  Bxh1 {[%clk 0:01:27]} 28. Kxh4 {[%clk 0:01:47]}  Rd8 {[%clk 0:01:16]} 29. Rxh1 {[%clk 0:01:44]}  Rxd6 {[%clk 0:01:16]} 30. Nc4 {[%clk 0:01:43]}  Re6 {[%clk 0:01:16]} 31. Bd3 {[%clk 0:01:39]}  Rd4 {[%clk 0:01:14]} 32. Rd1 {[%clk 0:01:30]}  Rf6 {[%clk 0:01:04]} 33. b3 {[%clk 0:01:28]}  Rf2 {[%clk 0:01:00]} 34. Kg3 {[%clk 0:01:15]}  Rxa2 {[%clk 0:01:00]} 35. Ne5 {[%clk 0:01:11]}  Rd5 {[%clk 0:00:36]} 36. Re1 {[%clk 0:01:02]}  Raa5 {[%clk 0:00:25]} 37. Kf4 {[%clk 0:00:44]}  Kg7 {[%clk 0:00:25]} 38. Bc4 {[%clk 0:00:42]}  g5+ {[%clk 0:00:17]} 39. Kf5 {[%clk 0:00:38]}  Rdc5 {[%clk 0:00:17]} 40. Bxf7 {[%clk 0:00:17]}  Rc2 {[%clk 0:00:16]} 41. Bc4 {[%clk 0:00:15]}  Rxh2 {[%clk 0:00:15]} 42. Kxg5 {[%clk 0:00:16]}  Rf2 {[%clk 0:00:14]} 43. Re4 {[%clk 0:00:14]}  Ra1 {[%clk 0:00:08]} 44. Nd3 {[%clk 0:00:14]}  Rd2 {[%clk 0:00:05]} 45. Re7+ {[%clk 0:00:14]}  Kf8 {[%clk 0:00:05]} 46. Rf7+ {[%clk 0:00:14]}  Ke8 {[%clk 0:00:04]} 47. Nxb4 {[%clk 0:00:14]}  a5 {[%clk 0:00:04]} 48. Nc6 {[%clk 0:00:14]}  a4 {[%clk 0:00:02]} 49. Re7+ {[%clk 0:00:13]}  Kf8 {[%clk 0:00:02]} 50. Rf7+ {[%clk 0:00:13]}  Ke8 {[%clk 0:00:01]} 51. Rf3 {[%clk 0:00:10]} 1-0


[Site "https://www.chess.com"]